bitfinex/quotes_ETHUSD_20251023
["timestamp","ask_amount","ask_price","bid_price","bid_amount"]
[1761253259498,0.001,3827.5,3827.4,6.62729166]
[1761253259872,0.001,3827.5,3827.4,2.61269166]
[1761253260870,0.1002,3827.5,3826.3,2.6134634]
[1761253261104,0.001,3827.5,3826.4,0.4556]
[1761253261279,0.001,3827.5,3826.9,2.61302087]
[1761253261478,0.118,3827.4,3825.6,0.002]
[1761253261679,2.61348204,3826.4,3825.6,0.002]
[1761253261888,0.2764882,3826.3,3825.6,0.002]
[1761253262097,2.61356093,3826.2,3825.6,0.002]
[1761253262296,0.1304,3825.7,3825.6,0.002]
[1761253263426,0.1304,3826.1,3825.6,0.1324]
[1761253263594,0.1304,3826.1,3825.7,2.61387895]
[1761253263792,0.1304,3826.1,3825.6,0.1324]
[1761253264233,2.61364113,3826.1,3825.6,0.002]
[1761253264527,2.61309509,3826.9,3825.6,0.002]
[1761253264528,4.16833982,3826.9,3825.9,2.61370193]
[1761253264825,4.16833982,3826.9,3825.7,3.06945458]
[1761253264826,1.91550951,3826.9,3825.7,0.4556]
[1761253264988,2.61321522,3826.8,3825.6,2.61596843]
[1761253265193,3.17186991,3826.8,3825.8,2.61378148]
[1761253265411,3.17186991,3826.8,3825.9,2.61371559]
[1761253265591,2.61323151,3826.7,3825.9,2.61371559]
[1761253265778,0.55865469,3826.8,3826.0,2.61367214]
[1761253265979,2.61316388,3826.8,3826.0,2.61367214]
[1761253266393,2.6131616,3826.8,3825.9,2.61375045]
[1761253266830,0.36030951,3826.9,3826.0,2.61366735]
[1761253267003,0.36030951,3826.9,3825.7,0.4556]
[1761253267004,0.36030951,3826.9,3825.8,2.61378017]
[1761253267312,0.26130951,3826.9,3825.6,0.002]
[1761253267512,0.28789227,3826.8,3825.7,2.61390072]
[1761253267712,1.5552,3826.8,3826.0,2.61367759]
[1761253268119,0.26130951,3826.9,3825.9,2.83044868]
[1761253268306,1.5552,3827.1,3826.1,2.61362172]
[1761253268511,2.61302546,3827.0,3826.1,2.61357858]
[1761253268819,1.5552,3827.1,3826.4,2.61339514]
[1761253269188,3.554,3827.2,3826.6,2.61322548]
[1761253269589,3.554,3827.2,3826.1,2.61362745]
[1761253269909,0.001,3827.5,3827.1,0.2167]
[1761253270491,0.001,3827.5,3827.4,2.61273971]
[1761253270711,0.001,3827.5,3827.1,3.28524144]
[1761253270712,0.001,3827.5,3827.1,0.6723]
[1761253271053,0.001,3827.5,3827.2,2.61281481]
[1761253271253,0.001,3827.5,3827.3,2.61275902]
[1761253271556,0.001,3827.5,3827.3,2.61278419]
[1761253271916,0.001,3827.5,3827.4,2.61273971]
[1761253272418,0.001,3827.5,3826.2,0.63753275]
[1761253272646,2.61368744,3827.5,3826.2,2.61355021]
[1761253272850,1.6542,3827.4,3825.9,0.2167]
[1761253273053,2.61321643,3826.8,3825.9,0.2167]
[1761253273365,2.61321643,3826.8,3825.6,0.6666]
[1761253273366,2.61355945,3826.2,3825.6,0.4576]
[1761253273858,3.545,3826.8,3825.6,3.07152427]
[1761253274028,3.545,3826.8,3826.1,0.2167]
[1761253274544,0.1304,3826.7,3826.1,0.3445]
[1761253274744,3.544,3827.2,3826.4,2.61336821]
[1761253274906,3.544,3827.2,3826.3,2.61347798]
[1761253275106,3.544,3827.2,3826.6,2.61326659]
[1761253275320,3.544,3827.2,3826.5,2.61334615]
[1761253275540,3.544,3827.2,3826.6,2.61326053]
[1761253275742,3.544,3827.2,3826.1,0.2141]
[1761253275743,3.544,3827.2,3826.7,2.6131989]
[1761253275941,3.544,3827.2,3826.7,2.61315432]
[1761253276142,3.544,3827.2,3826.8,2.61309821]
[1761253276568,3.544,3827.2,3826.9,2.6130362]
[1761253276730,0.001,3827.5,3827.1,0.2167]
[1761253277209,0.001,3827.5,3827.2,2.61285844]
[1761253277412,0.001,3827.5,3827.1,0.2167]
[1761253277413,0.001,3827.5,3827.3,2.61278549]
[1761253277625,0.001,3827.5,3827.2,2.61286157]
[1761253277928,0.001,3827.5,3826.5,3.548]
[1761253277929,3.647,3827.4,3825.4,3.548]
[1761253278157,2.61301779,3827.0,3826.3,0.2167]
[1761253278320,4.012,3827.4,3826.3,0.2167]
[1761253278721,2.6130814,3826.9,3826.3,0.2167]
[1761253278917,2.61288827,3827.2,3826.4,2.61342253]
[1761253279139,3.913,3827.4,3826.3,0.2167]
[1761253279140,3.917,3827.4,3826.3,0.2167]
[1761253279342,2.61312509,3826.9,3826.3,0.2167]
[1761253279546,2.61315655,3826.8,3826.3,0.2167]
[1761253279849,3.65367005,3827.3,3826.3,0.2167]
[1761253280059,2.61314124,3826.9,3826.0,2.61367235]
[1761253280243,0.75716701,3827.2,3826.0,0.2167]
[1761253280555,2.61304672,3827.0,3826.0,0.2167]
[1761253280846,2.61294452,3827.1,3826.0,3.28593872]
[1761253281049,2.61318207,3826.8,3826.0,3.28593872]
[1761253281350,1.04082,3827.3,3826.0,0.2167]
[1761253281530,2.61305671,3827.0,3826.2,2.61350504]
[1761253281725,0.41009316,3827.2,3826.1,0.4556]
[1761253281928,1.04082,3827.3,3826.2,0.4556]
[1761253282128,6.16474955,3827.4,3826.2,0.4556]
[1761253282129,3.552,3827.4,3826.6,2.6132831]
[1761253282344,2.61280798,3827.3,3826.4,2.6133642]
[1761253282543,6.16474541,3827.4,3826.5,2.61332285]
[1761253282716,3.552,3827.4,3826.8,2.61310379]
[1761253283028,0.001,3827.5,3827.2,2.61283319]
[1761253283233,0.001,3827.5,3827.3,0.2167]
[1761253283444,0.001,3827.5,3826.8,2.61313991]
[1761253283445,0.001,3827.5,3827.1,0.2167]
[1761253283957,0.001,3827.5,3827.2,0.4556]
[1761253284260,0.001,3827.6,3827.5,2.61267145]
[1761253284463,0.001,3828.1,3827.8,2.61241642]
[1761253284757,0.001,3828.1,3828.0,2.61233019]
[1761253284931,0.001,3828.1,3828.0,3.06793019]
[1761253287331,0.69310188,3830.5,3828.6,2.61185284]
[1761253287655,2.60975055,3831.8,3828.6,2.61185284]
[1761253287656,0.1513,3832.5,3831.0,2.61028452]
[1761253287829,0.1513,3832.5,3831.1,4.88424257]
[1761253288031,0.1513,3832.5,3831.1,5.31364257]
[1761253288357,0.1563,3832.8,3831.2,0.02610148]
[1761253288517,0.1563,3832.8,3831.2,3.551]
[1761253288721,0.1563,3832.8,3831.3,0.83617785]
[1761253289261,2.6146,3833.5,3831.7,9.82768976]
[1761253289436,2.515,3833.5,3831.8,3.555]
[1761253289635,2.515,3833.5,3831.8,6.60863055]
[1761253289836,5.12363477,3833.5,3832.0,2.60960334]
[1761253290034,5.12363477,3833.5,3831.9,0.4439]
[1761253290035,2.06756348,3833.4,3831.9,0.4439]
[1761253290235,0.51236348,3833.4,3831.9,0.4439]
[1761253290427,2.515,3833.5,3831.9,0.4439]
[1761253290623,2.60871594,3833.4,3832.2,2.60939946]
[1761253290828,2.60867412,3833.4,3832.3,2.60939141]
[1761253291028,2.60859104,3833.5,3832.5,2.60925682]
[1761253291258,0.1006,3833.8,3832.5,3.552]
[1761253291259,2.86951005,3833.4,3832.5,3.552]
[1761253291458,2.60878719,3833.2,3832.5,3.552]
[1761253291760,2.60878719,3833.2,3832.5,3.7824]
[1761253291964,0.0996,3833.1,3832.3,3.55]
[1761253292163,2.60897837,3833.0,3832.3,3.55]
[1761253292627,2.6087097,3833.4,3832.3,3.55]
[1761253292822,2.60887296,3833.1,3832.3,3.55]
[1761253293257,2.6087097,3833.4,3832.3,3.55]
[1761253293470,0.42635097,3833.3,3832.3,3.55]
[1761253293636,0.0996,3833.5,3832.3,3.55]
[1761253293841,2.60869554,3833.4,3832.3,3.55]
[1761253294037,2.60884092,3833.2,3832.2,2.60946008]
[1761253294236,2.60869554,3833.4,3831.6,9.82768976]
[1761253294237,2.60872016,3833.3,3832.3,6.15639445]
[1761253294436,0.001,3833.9,3833.3,0.2304]
[1761253294644,0.1304,3833.6,3833.3,0.2304]
[1761253294875,0.001,3833.9,3833.4,2.63473678]
[1761253295026,0.1214,3833.8,3833.5,3.6774]
[1761253295633,0.001,3833.8,3833.5,3.6774]
[1761253296028,0.001,3833.8,3833.6,3.547]
[1761253296233,0.1304,3833.7,3833.5,3.547]
[1761253296428,0.1304,3833.7,3833.3,3.547]
[1761253296762,0.001,3833.8,3833.4,2.73905028]
[1761253297078,0.001,3833.8,3833.5,2.60857212]
[1761253297371,0.001,3833.8,3833.4,0.5743]
[1761253297668,0.001,3833.8,3833.5,2.60858223]
[1761253297866,0.001,3833.8,3833.5,0.4439]
[1761253298067,0.001,3833.8,3833.7,2.60844614]
[1761253298268,0.001,3833.8,3833.7,2.73884614]
[1761253298466,0.001,3833.8,3833.7,3.18274614]
[1761253299339,0.001,3833.8,3833.7,6.72374614]
[1761253299971,0.001,3833.8,3833.7,8.1831064]
[1761253301036,0.001,3833.8,3833.7,6.72374614]
[1761253301970,0.001,3833.8,3833.7,3.18274614]
[1761253302176,0.7665,3834.3,3833.7,0.1304]
[1761253302469,0.1304,3834.2,3833.8,2.479]
[1761253302671,0.7665,3834.3,3833.9,2.479]
[1761253302835,0.7665,3834.3,3834.0,6.14919356]
[1761253303381,0.7665,3834.3,3834.2,2.60810599]
[1761253304972,0.7665,3834.3,3834.2,3.05200599]
[1761253305479,0.7665,3834.3,3834.2,2.60810599]
[1761253305704,0.7665,3834.3,3834.0,3.541]
[1761253305974,0.7665,3834.3,3834.2,2.60810599]
[1761253306345,0.7665,3834.3,3834.2,3.05200599]
[1761253307589,0.7665,3834.3,3833.2,0.6743]
[1761253307892,0.7665,3834.3,3833.7,2.60844565]
[1761253308194,0.7665,3834.3,3834.2,12.43579575]
[1761253308353,0.7665,3834.3,3834.2,15.96879575]
[1761253308547,0.7165,3834.3,3834.2,16.41269575]
[1761253308748,0.7165,3834.3,3834.2,6.58500599]
[1761253309484,0.7175,3834.3,3834.2,6.58500599]
[1761253310256,0.7175,3834.3,3834.2,17.33201538]
[1761253310485,0.7175,3834.3,3834.2,16.40869575]
[1761253312658,0.7175,3834.3,3834.2,6.13310599]
[1761253313564,0.7175,3834.3,3834.2,6.13110599]
[1761253313946,0.7175,3834.3,3833.7,0.4439]
[1761253314278,0.7175,3834.3,3834.2,2.60810599]
[1761253314593,0.7175,3834.3,3834.2,6.13010599]
[1761253315498,0.7175,3834.3,3833.8,2.60832397]
[1761253315650,0.7175,3834.3,3833.9,3.52]
[1761253316774,0.7175,3834.3,3833.9,2.60829894]
[1761253316976,0.7175,3834.3,3834.0,3.52]
[1761253317376,0.7175,3834.3,3833.9,2.60829894]
[1761253317576,0.7175,3834.3,3834.1,3.517]
[1761253317987,0.7175,3834.3,3834.0,2.60817522]
[1761253318189,0.7175,3834.3,3834.2,3.516]
[1761253318392,0.7175,3834.3,3834.0,2.60818847]
[1761253318697,0.7175,3834.3,3834.1,3.514]
[1761253318888,0.7175,3834.3,3834.2,3.513]
[1761253319197,0.7175,3834.3,3834.0,2.60818847]
[1761253319198,0.1001,3834.2,3833.4,0.002]
[1761253319385,0.1001,3834.2,3833.5,0.515]
[1761253319592,0.1001,3834.2,3833.6,2.60851419]
[1761253319783,0.1001,3834.2,3833.7,2.60840329]
[1761253319979,0.7175,3834.3,3833.8,3.512]
[1761253320299,0.7175,3834.3,3833.4,0.002]
[1761253320502,0.7175,3834.3,3833.5,3.511]
[1761253320714,0.7175,3834.3,3833.7,2.60844563]
[1761253320893,0.7175,3834.3,3833.4,0.002]
[1761253320894,1.31083659,3834.3,3833.8,3.51]
[1761253321078,1.31083659,3834.3,3833.4,0.002]
[1761253321079,0.1196,3833.5,3833.4,0.002]
[1761253321269,2.70841998,3834.2,3833.4,6.12065028]
[1761253321468,0.7175,3834.3,3833.4,6.12065028]
[1761253321469,0.7175,3834.3,3833.4,6.12058705]
[1761253321694,0.7175,3834.3,3833.9,2.60825433]
[1761253321896,0.7175,3834.3,3834.0,3.51]
[1761253322110,0.7175,3834.3,3833.8,2.60837811]
[1761253322307,0.7175,3834.3,3833.9,3.51]
[1761253322308,1.05003389,3834.3,3833.9,3.51]
[1761253322467,0.1005,3834.2,3833.9,3.51]
[1761253322801,1.05003389,3834.3,3833.8,2.60837811]
[1761253323104,0.1304,3834.2,3833.8,2.60837811]
[1761253323614,0.1304,3834.2,3833.7,3.51]
[1761253323781,0.1304,3834.2,3833.8,2.60837388]
[1761253323986,0.1304,3834.2,3833.7,6.11843885]
[1761253324290,0.1304,3834.2,3833.6,0.1304]
[1761253324291,0.1194,3833.8,3833.6,0.1304]
[1761253324509,0.1194,3833.8,3833.7,3.506]
[1761253325410,0.7175,3834.3,3833.7,3.506]
[1761253325411,0.7175,3834.3,3833.9,2.60824479]
[1761253325704,0.7175,3834.3,3834.2,2.83230599]
[1761253325876,0.7175,3834.3,3834.2,6.33930599]
[1761253326702,0.7175,3834.3,3834.2,6.78690599]
[1761253327612,0.7175,3834.3,3834.2,7.72641527]
[1761253328310,1e-08,3834.3,3834.2,7.72641527]
[1761253328881,0.001,3835.1,3834.6,2.60783393]
[1761253329119,0.001,3835.1,3834.6,3.05543393]
[1761253329301,0.001,3835.1,3834.6,6.55943393]
[1761253329621,0.001,3835.1,3834.6,7.47616924]
[1761253330512,0.001,3835.1,3834.6,6.11383393]
[1761253330901,0.001,3835.1,3834.6,6.56143393]
[1761253333811,0.001,3835.1,3834.6,3.05543393]
[1761253334038,0.001,3835.1,3834.6,7.06131393]
[1761253334675,0.001,3835.1,3834.6,8.61651393]
[1761253334974,0.001,3835.1,3834.6,9.73895724]
[1761253335174,0.001,3835.1,3834.6,9.73695724]
[1761253335339,0.001,3835.1,3834.6,9.86735724]
[1761253335732,0.001,3835.1,3834.6,6.37035724]
[1761253335980,0.001,3835.1,3834.6,19.40371101]
[1761253336265,0.001,3835.1,3834.6,19.66116062]
[1761253336432,0.001,3835.1,3834.6,21.05257982]
[1761253336631,0.001,3835.1,3834.6,19.66116062]
[1761253336854,0.001,3835.1,3834.6,19.53411101]
[1761253337038,1e-08,3835.6,3835.5,3.338302]
[1761253337243,1e-08,3835.6,3835.5,8.98406259]
[1761253337439,1e-08,3835.6,3835.5,9.56206259]
[1761253339558,1e-08,3835.6,3835.5,9.55706259]
[1761253339761,1e-08,3835.6,3835.5,4.964622]
[1761253339968,1e-08,3835.6,3835.5,8.454622]
[1761253342889,1e-08,3835.6,3835.5,8.961502]
[1761253343249,1e-08,3835.6,3835.5,8.831102]
[1761253344188,0.00100001,3835.6,3835.5,8.831102]
[1761253344342,0.00100001,3835.6,3835.5,9.90233495]
[1761253345449,1e-08,3836.4,3836.3,3.3377583]
[1761253345684,1e-08,3836.4,3836.3,8.8215583]
[1761253347492,0.1169,3838.0,3837.9,2.60559159]
[1761253347774,0.099,3838.7,3838.2,2.60532674]
[1761253348089,0.099,3838.7,3838.4,2.60524192]
[1761253348243,0.099,3838.7,3838.3,3.479]
[1761253348741,0.0992,3838.6,3838.5,2.60514048]
[1761253348944,0.0992,3838.6,3837.4,0.4732]
[1761253348945,0.0492,3838.6,3837.4,0.4732]
[1761253349163,2.60497696,3838.9,3838.1,2.6054383]
[1761253349485,0.67649541,3838.8,3838.2,3.476]
[1761253349697,3.28148141,3838.8,3838.2,3.476]
[1761253349895,0.67649541,3838.8,3838.2,6.0813713]
[1761253350479,0.67649541,3838.8,3838.3,2.60531463]
[1761253350682,2.60486039,3839.0,3838.3,2.60531463]
[1761253350982,2.60486039,3839.0,3837.2,2.60605801]
[1761253350983,0.0497,3838.9,3836.8,2.60633861]
[1761253351190,2.605391,3838.2,3837.4,2.60587282]
[1761253351387,1.5552,3838.8,3837.2,2.60604812]
[1761253351571,1.5552,3838.8,3836.5,3.05541725]
[1761253351572,0.0669,3837.3,3836.5,2.60651725]
[1761253351772,0.0669,3837.3,3837.2,2.60606692]
[1761253352106,0.0669,3837.3,3837.2,6.07906692]
[1761253352598,0.1659,3837.3,3836.1,0.2153]
[1761253352797,0.1659,3837.3,3835.0,0.2242]
[1761253352798,5.1659,3837.3,3836.6,2.60646376]
[1761253353000,0.99697795,3837.2,3835.6,0.4578]
[1761253353201,1.12737795,3837.2,3836.6,0.1304]
[1761253353371,0.2198,3837.1,3836.6,3.5974]
[1761253354183,0.2198,3837.1,3835.5,0.2242]
[1761253354500,0.2198,3837.1,3835.8,2.60696985]
[1761253354700,2.60647383,3836.7,3835.9,6.07594686]
[1761253355000,2.60635026,3836.8,3835.7,2.6070395]
[1761253355205,0.50906727,3837.1,3835.0,0.2242]
[1761253355206,2.6066625,3836.4,3835.0,0.2242]
[1761253355409,2.6066625,3836.4,3834.6,1.12244331]
[1761253355410,0.60588,3837.0,3834.4,0.4578]
[1761253355703,0.60588,3837.0,3834.3,1.39959237]
[1761253355704,0.138,3835.1,3834.5,1.675]
[1761253355904,0.138,3835.1,3834.6,2.60783393]
[1761253356201,0.3744,3835.1,3834.6,3.47]
[1761253356386,0.099,3835.0,3834.6,3.47]
[1761253356979,0.1387,3836.0,3834.6,3.47]
[1761253357178,0.1387,3836.0,3834.7,2.60776592]
[1761253357403,0.0994,3835.9,3835.0,2.60754598]
[1761253357603,2.70640054,3835.9,3834.8,2.60763055]
[1761253357784,2.60702024,3835.8,3834.9,3.471]
[1761253357980,2.60708926,3835.7,3834.9,3.471]
[1761253358184,2.70648926,3835.7,3834.9,3.471]
[1761253358388,0.0994,3835.6,3834.9,3.471]
[1761253358586,0.0994,3835.6,3834.9,6.07860577]
[1761253358787,0.0994,3835.6,3834.9,6.07862466]
[1761253358991,0.0994,3835.6,3834.9,2.60762466]
[1761253359308,0.63074657,3835.6,3834.1,0.002]
[1761253359607,2.60736645,3835.3,3834.4,2.60796995]
[1761253359805,2.60736645,3835.3,3834.3,2.60801726]
[1761253359987,0.2356,3835.2,3834.4,3.47]
[1761253360502,0.2356,3835.2,3834.1,0.002]
[1761253360503,0.2356,3835.2,3834.2,2.60810599]
[1761253360704,0.2356,3835.2,3834.4,3.469]
[1761253360705,2.60762405,3835.0,3834.4,3.469]
[1761253360876,0.2356,3835.2,3834.3,6.07603785]
[1761253360877,2.60754113,3835.1,3834.3,6.07603785]
[1761253361078,2.60756192,3835.0,3834.3,3.468]
[1761253361278,2.84316192,3835.0,3834.3,3.468]
[1761253361491,0.138,3834.4,3834.3,3.468]
[1761253362078,0.1376,3834.7,3834.3,6.074981]
[1761253362273,0.1376,3834.7,3834.3,2.607981]
[1761253362512,0.1376,3834.7,3834.3,3.469]
[1761253362809,5.0,3834.4,3834.3,6.07703263]
[1761253363201,5.0,3834.4,3834.3,6.07503263]
[1761253367110,5.0,3834.4,3834.3,6.20243263]
[1761253367677,5.0,3834.4,3834.3,6.19843263]
[1761253370216,5.0,3834.4,3834.3,6.19543263]
[1761253372516,5.0,3834.4,3834.3,6.65323263]
[1761253372712,1.5552,3835.4,3834.8,2.60768446]
[1761253372880,1.5552,3835.4,3834.9,0.1304]
[1761253373295,0.099,3835.3,3834.9,2.73801967]
[1761253373496,0.099,3835.3,3835.0,2.60754626]
[1761253373683,0.099,3835.3,3834.9,2.73801551]
[1761253374693,1.5552,3835.4,3834.9,2.73801551]
[1761253375919,0.1304,3835.5,3835.0,2.60756073]
[1761253376124,0.1304,3835.5,3835.1,2.60749391]
[1761253376317,0.1304,3835.5,3835.0,6.05553352]
[1761253377224,0.1304,3835.5,3835.1,2.60749338]
[1761253377524,1.6856,3835.6,3835.1,2.737884]
[1761253377917,1.3,3835.2,3835.1,2.737884]
[1761253378290,1.3,3835.2,3835.1,0.1304]
[1761253378726,1.3,3835.2,3835.1,2.73789393]
[1761253378926,1.3,3835.2,3835.1,0.1304]
[1761253380538,1.3,3835.2,3835.1,2.73789393]
[1761253382408,2.60638638,3836.8,3835.1,1.70216429]
[1761253382632,0.1304,3836.5,3836.1,2.60680569]
[1761253382832,3.5474,3836.7,3836.1,2.60680569]
[1761253382833,0.1304,3836.6,3836.1,0.1304]
[1761253383036,0.1304,3836.2,3835.3,0.1304]
[1761253383242,0.1304,3836.2,3834.3,0.002]
[1761253383243,0.1373,3835.4,3835.2,0.946]
[1761253383454,2.60740907,3835.3,3834.3,2.61001855]
[1761253383607,0.1304,3835.1,3834.8,2.60769361]
[1761253383954,0.237,3835.2,3834.8,0.1304]
[1761253384595,0.1304,3835.3,3834.8,0.1304]
[1761253384796,0.1369,3835.8,3835.1,0.1304]
[1761253385152,0.1304,3836.6,3836.2,2.60668207]
[1761253385499,0.1304,3836.6,3835.9,3.448]
[1761253385500,0.1304,3836.6,3836.1,0.1304]
[1761253385697,2.70547456,3836.6,3836.3,0.1304]
[1761253385941,2.83587456,3836.6,3836.1,0.1304]
[1761253386146,0.2294,3836.6,3836.1,0.1304]
[1761253386325,0.099,3837.1,3836.0,2.961]
[1761253386510,0.1304,3836.9,3836.3,0.1304]
[1761253386857,2.73670106,3836.9,3836.3,0.1304]
[1761253387032,2.60634798,3836.8,3836.3,0.1304]
[1761253387252,2.60634798,3836.8,3834.5,4.1630988]
[1761253387253,0.099,3836.8,3836.1,3.448]
[1761253387442,2.60673975,3836.3,3835.4,3.448]
[1761253387647,2.60667779,3836.4,3835.6,2.60711135]
[1761253387856,0.099,3836.5,3835.4,3.448]
[1761253388031,2.60661568,3836.4,3835.5,2.60720851]
[1761253388376,2.60679661,3836.2,3835.6,2.60713708]
[1761253388574,2.60679661,3836.2,3835.4,3.448]
[1761253388575,2.60680208,3836.2,3835.4,2.60727264]
[1761253388776,2.70580208,3836.2,3835.5,2.60720471]
[1761253388955,2.60681563,3836.1,3835.4,2.6072777]
[1761253389358,2.60681563,3836.1,3835.5,2.60721231]
[1761253389566,0.099,3836.0,3834.9,0.217]
[1761253389773,2.0089,3836.0,3835.0,2.60751776]
[1761253389976,0.1369,3835.9,3834.9,0.217]
[1761253390175,2.60707913,3835.8,3835.0,2.60750877]
[1761253390383,2.60711217,3835.7,3835.0,2.60750877]
[1761253391251,2.60711217,3835.7,3835.1,2.60748672]
[1761253391451,2.60711217,3835.7,3835.0,2.60755085]
[1761253391647,2.60711217,3835.7,3834.5,0.4322]
[1761253391648,0.73602627,3835.7,3834.3,0.002]
[1761253391989,2.60737204,3835.3,3834.3,2.61003797]
[1761253392160,2.60737204,3835.3,3834.5,2.60785592]
[1761253392355,2.70717204,3835.3,3834.5,2.60785592]
[1761253392865,2.60750561,3835.1,3834.3,0.002]
[1761253393050,0.0998,3835.2,3834.3,0.002]
[1761253393245,2.60760884,3835.0,3834.3,0.002]
[1761253393648,2.60760884,3835.0,3834.3,2.61003376]
[1761253393854,0.1398,3834.9,3834.3,2.61003376]
[1761253394484,0.1398,3834.9,3834.3,0.002]
[1761253394717,2.84644305,3834.9,3834.3,0.002]
[1761253394996,2.84644634,3834.9,3834.3,0.002]
[1761253395176,2.60770638,3834.8,3834.3,0.002]
[1761253395684,2.60796995,3834.4,3834.3,0.002]
[1761253395884,7.61116995,3834.4,3834.3,0.002]
[1761253396096,7.71016995,3834.4,3834.3,0.002]
[1761253396290,8.21704995,3834.4,3834.3,0.002]
[1761253397470,8.34744995,3834.4,3834.3,0.002]
[1761253397668,9.44297834,3834.4,3834.3,0.002]
[1761253405712,5.38909834,3834.4,3834.3,0.002]
[1761253406013,6.5298,3834.9,3834.3,0.002]
[1761253406014,2.60727683,3835.5,3834.4,2.60796995]
[1761253406179,8.99708646,3835.7,3834.4,0.1304]
[1761253406180,0.1304,3834.9,3834.4,0.1304]
[1761253406513,0.1304,3834.9,3834.5,0.4312]
[1761253406808,3.5784,3835.0,3834.7,2.6077486]
[1761253407007,3.5784,3835.0,3834.5,0.4312]
[1761253407409,3.5784,3835.0,3834.6,2.60781354]
[1761253407578,3.5784,3835.0,3834.7,2.60776369]
[1761253407779,3.5784,3835.0,3834.5,0.4312]
[1761253408196,3.5784,3835.0,3834.7,2.60772015]
[1761253408478,3.5784,3835.0,3834.6,2.60782434]
[1761253408679,3.5784,3835.0,3834.6,0.4312]
[1761253408908,3.5784,3835.0,3834.8,2.60767788]
[1761253409219,3.5784,3835.0,3834.7,0.4428]
[1761253409374,3.5784,3835.0,3834.4,0.1304]
[1761253409375,0.139,3834.9,3834.4,0.1304]
[1761253409575,1.6942,3834.9,3834.3,0.002]
[1761253409785,4.30189297,3834.9,3834.3,0.002]
[1761253409985,1.6942,3834.9,3834.3,0.002]
[1761253410202,3.448,3834.8,3834.3,0.002]
[1761253410692,3.448,3834.8,3834.4,2.60795614]
[1761253411304,3.448,3834.8,3834.3,3.05281272]
[1761253411511,3.448,3834.8,3834.3,0.4448]
[1761253411890,3.448,3834.8,3834.3,0.002]
[1761253412700,3.448,3834.8,3834.3,2.61003474]
[1761253412895,6.05570021,3834.8,3834.3,0.002]
[1761253416322,3.448,3834.8,3834.3,0.002]
[1761253416500,3.448,3834.8,3834.3,0.4448]
[1761253417525,6.05575157,3834.8,3834.3,0.4448]
[1761253419422,3.448,3834.8,3834.3,0.4448]
[1761253419632,3.5784,3834.8,3834.3,0.4448]
[1761253420001,6.18610472,3834.8,3834.3,0.4448]
[1761253420821,6.18610472,3834.8,3834.3,0.002]
[1761253422124,6.18610472,3834.8,3834.4,0.4428]
[1761253422303,2.60777102,3834.7,3834.4,0.4428]
[1761253422718,2.60777102,3834.7,3834.3,0.002]
[1761253422906,6.18612418,3834.8,3834.3,0.4448]
[1761253423722,6.18612418,3834.8,3834.3,0.002]
[1761253423922,2.60796995,3834.4,3834.3,0.002]
[1761253424123,6.18436995,3834.4,3834.3,0.002]
[1761253424935,3.5764,3834.4,3834.3,0.002]
[1761253427935,0.1398,3835.2,3834.3,0.4448]
[1761253428141,1.6856,3834.8,3834.3,3.05283797]
[1761253428309,3.446,3834.7,3834.3,3.05283797]
[1761253428511,3.446,3834.7,3834.3,2.61003797]
[1761253428824,3.446,3834.7,3834.3,3.05283797]
[1761253429420,3.446,3834.7,3834.4,0.4428]
[1761253429616,3.446,3834.7,3834.4,3.05076959]
[1761253430018,3.446,3834.7,3834.4,0.4428]
[1761253430410,1.6856,3834.8,3834.4,3.05076797]
[1761253430613,3.5754,3834.8,3834.5,2.60785182]
[1761253430812,3.5754,3834.8,3834.6,2.60776741]
[1761253431144,3.445,3834.8,3834.7,2.60776592]
[1761253431512,3.445,3834.8,3834.6,3.18098332]
[1761253431812,3.445,3834.8,3834.6,0.1304]
[1761253432011,3.445,3834.8,3834.6,2.73823358]
[1761253432631,3.445,3834.8,3834.7,2.60776592]
[1761253433232,0.1304,3835.1,3834.7,2.60776592]
[1761253433426,3.445,3835.0,3834.7,2.60776592]
[1761253433646,0.1304,3835.1,3834.7,2.60776592]
[1761253433944,3.445,3835.0,3834.6,3.1810157]
[1761253434645,3.445,3835.0,3834.7,3.05053159]
[1761253435343,3.445,3835.0,3834.7,0.4428]
[1761253436433,3.445,3835.0,3834.7,3.05056058]
[1761253436641,3.445,3835.0,3834.7,0.4428]
[1761253437220,3.445,3835.0,3834.7,3.05054475]
[1761253437420,3.445,3835.0,3834.7,0.4428]
[1761253438045,3.444,3835.0,3834.7,3.05055422]
[1761253438229,3.444,3835.0,3834.7,0.4428]
[1761253438552,3.444,3835.0,3834.6,0.1304]
[1761253439919,3.444,3835.0,3834.6,0.5616]
[1761253440340,3.444,3835.0,3834.3,0.002]
[1761253440547,0.1304,3834.8,3834.3,0.002]
[1761253440742,3.444,3834.7,3834.3,2.61003135]
[1761253441148,3.444,3834.7,3834.4,0.4312]
[1761253441352,0.1304,3834.8,3834.4,3.03915866]
[1761253441551,6.14335971,3835.2,3834.4,3.03915866]
[1761253441552,3.444,3834.7,3834.6,2.60783393]
[1761253441750,3.444,3834.7,3834.5,2.60787419]
[1761253441955,3.444,3834.9,3834.6,2.60782316]
[1761253442453,3.444,3834.9,3834.4,0.5616]
[1761253442652,3.444,3834.9,3834.5,2.60789434]
[1761253443358,3.444,3834.9,3834.6,2.60780912]
[1761253443949,3.444,3834.9,3834.6,3.03900912]
[1761253444143,3.444,3834.9,3834.6,0.4312]
[1761253444344,3.444,3834.9,3834.5,2.60787992]
[1761253444550,3.443,3834.9,3834.6,2.60783236]
[1761253445058,3.443,3834.9,3834.6,3.03903236]
[1761253445285,0.1304,3835.0,3834.6,0.57793937]